Workbook

Sheet Récap
A1: Nbre Date Validée | B1: =SUMPRODUCT(COUNTIF(A3:A100,"oui")) -> 9 | C1: Total Date | D1: =B1+B2 -> 14 | G1: Nbre Pax | H1: =SUM(L4:L102) -> 0 | I1: CA TTC | J1: =(J2*K1)+J2 -> 0 | K1: 0.2
A2: Nbre Date Non Validée | B2: =SUMPRODUCT(COUNTIF(A3:A101,"non")) -> 5 | I2: CA HT | J2: =SUM(M4:M102) -> 0 | L2: Marge HT | M2: =SUM(AJ:AJ) -> 0 | N2: =M2/J2 ->  | AE2: =SUM(AE4:AE102) -> 0
A3: Validé | B3: Date | C3: Horaire Début | D3: Horaire Fin | E3: Activité 1 | F3: Activité 2 | G3: Ville | H3: Lieu | I3: Agence | J3: Chef de Projet | K3: Client Final | L3: Nbre Pax | M3: Prix HT | N3: Prix par Pax | O3: Coach 1 | P3: Paie | Q3: Coach 2 | R3: Paie | S3: Coach 3 | T3: Paie | U3: Coach 4 | V3: Paie | W3: Coach 5 | X3: Paie | Y3: Coach 6 | Z3: Paie | AA3: Coach 7 | AB3: Paie | AC3: Coach 8 | AD3: Paie | AE3: Cout Paie | AF3: Vidéo | AG3: Cout Transport | AH3: Cout Autre | AI3: Total € | AJ3: Marge | AK3: Commentaires
A4: non | B4: 2016-07-01 | C4: 13:00:00 | D4: 17:00:00
A5: non | B5: 2016-07-03 | C5: 18:00:00 | D5: 22:00:00 | O5: Stéphane BOUTINAUD | AK5: AU BLACK
A6: oui | B6: 2016-07-04 | O6: Olivier | P6: 450 | Q6: Aurelie | R6: 250 | S6: Grizzly | T6: 180 | AK6: VIDEO FLORIAN 600€
A7: oui | B7: 2016-07-04 | C7: 18:00:00 | D7: 20:00:00 | O7: Alain R | P7: 350 | Q7: Olivier | R7: 250 | S7: Nicolas OLMEDO | T7: 100 | U7: Franck LOPEPE | V7: 100 | AK7: 1 junor + Camion 100€ black
A8: non | B8: 2016-07-05 | C8: 13:00:00
A9: oui | B9: 2016-07-05 | C9: 13:00:00 | D9: 17:00:00 | O9: Olivier | P9: 450 | Q9: Grizzly | R9: 200 | S9: Franck LOPEPE | T9: 100 | U9: Nicolas OLMEDO | V9: 100 | AK9: sono en plus 120€ . 705+505+120+80+240= 1650€ ht
A10: oui | B10: 2016-07-06 | C10: 21:00:00 | D10: 1 | O10: OLIVIER | P10: 300 | Q10: Sandro | R10: 150 | AK10: presta MAELIA Excellencia pour 2 musiciens et 1 danseuse.
A11: oui | B11: 2016-07-07 | C11: 09:00:00 | D11: 18:00:00 | O11: Olivier | P11: 400 | Q11: Grizzly | R11: 230 | S11: Sandro | T11: 230 | U11: Franck LOPEPE | V11: 100
A12: oui | B12: 2016-07-08 | C12: 11:00:00 | D12: 15:00:00 | O12: Olivier | P12: 300
A13: non | B13: 2016-07-11
A14: oui | B14: 2016-07-11 | C14: 18:00:00 | D14: 20:00:00 | O14: Olivier | P14: 300 | Q14: Grizzly | R14: 200 | S14: Franck LOPEPE | T14: 100
A15: non | B15: 2016-07-12 | O15: Olivier | P15: 400 | Q15: Aurelie | R15: 200 | S15: Sandro | T15: 200 | AK15: AVEC SHOW DES ZICOS EN DEBUT DE DANCE FLOOR
A16: oui | B16: 2016-07-12 | O16: Alain R | P16: 300 | Q16: Olivier | R16: 250
A17: oui | B17: 2016-07-21 | C17: 13:00:00 | D17: 18:00:00 | O17: Olivier | P17: 400 | Q17: John KIKOUTA | R17: 260 | S17: Rosalie H | T17: 250 | U17: Alain R | V17: 200 | AF17: FLORIAN | AK17: SONOS EN PLUS (1200€)

Sheet Coach
A1: Coach | B1: Nbre Dates | C1: Total Paies | D1: =SUM(B2:B107) -> 31 | E1: =SUM(C2:C173) -> 6700 | F1: =E1*2 -> 13400 | G1: =Récap!AE2-Coach!F1 -> -13400
A2: ?? | B2: =COUNTIF(Coaches,A2) -> 0 | C2: =SUMIF(Récap!O:O,A2,Récap!P:P)+SUMIF(Récap!Q:Q,A2,Récap!R:R)+SUMIF(Récap!S:S,A2,Récap!T:T)+SUMIF(Récap!U:U,A2,Récap!V:V)+SUMIF(Récap!W:W,A2,Récap!X:X)+SUMIF(Récap!Y:Y,A2,Récap!Z:Z) -> 0
A3: Alain R | B3: 3 | C3: =SUMIF(Récap!O:O,A3,Récap!P:P)+SUMIF(Récap!Q:Q,A3,Récap!R:R)+SUMIF(Récap!S:S,A3,Récap!T:T)+SUMIF(Récap!U:U,A3,Récap!V:V)+SUMIF(Récap!W:W,A3,Récap!X:X)+SUMIF(Récap!Y:Y,A3,Récap!Z:Z) -> 850 | D3: 2016-07-04 | E3: 350 | F3: 2016-07-12 | G3: 300 | H3: 2016-07-21 | I3: 200
A4: Aurelie | B4: 2 | C4: =SUMIF(Récap!O:O,A4,Récap!P:P)+SUMIF(Récap!Q:Q,A4,Récap!R:R)+SUMIF(Récap!S:S,A4,Récap!T:T)+SUMIF(Récap!U:U,A4,Récap!V:V)+SUMIF(Récap!W:W,A4,Récap!X:X)+SUMIF(Récap!Y:Y,A4,Récap!Z:Z) -> 450 | D4: 2016-07-04 | E4: 250 | F4: 2016-07-12 | G4: 200
A5: Bakary | B5: 0 | C5: =SUMIF(Récap!O:O,A5,Récap!P:P)+SUMIF(Récap!Q:Q,A5,Récap!R:R)+SUMIF(Récap!S:S,A5,Récap!T:T)+SUMIF(Récap!U:U,A5,Récap!V:V)+SUMIF(Récap!W:W,A5,Récap!X:X)+SUMIF(Récap!Y:Y,A5,Récap!Z:Z) -> 0
A6: Bruce Allan VILMEN | B6: 0 | C6: =SUMIF(Récap!O:O,A6,Récap!P:P)+SUMIF(Récap!Q:Q,A6,Récap!R:R)+SUMIF(Récap!S:S,A6,Récap!T:T)+SUMIF(Récap!U:U,A6,Récap!V:V)+SUMIF(Récap!W:W,A6,Récap!X:X)+SUMIF(Récap!Y:Y,A6,Récap!Z:Z) -> 0
A7: Cécile | B7: 0 | C7: =SUMIF(Récap!O:O,A7,Récap!P:P)+SUMIF(Récap!Q:Q,A7,Récap!R:R)+SUMIF(Récap!S:S,A7,Récap!T:T)+SUMIF(Récap!U:U,A7,Récap!V:V)+SUMIF(Récap!W:W,A7,Récap!X:X)+SUMIF(Récap!Y:Y,A7,Récap!Z:Z) -> 0
A8: Cristina ABAD GARCIA | B8: 0 | C8: =SUMIF(Récap!O:O,A8,Récap!P:P)+SUMIF(Récap!Q:Q,A8,Récap!R:R)+SUMIF(Récap!S:S,A8,Récap!T:T)+SUMIF(Récap!U:U,A8,Récap!V:V)+SUMIF(Récap!W:W,A8,Récap!X:X)+SUMIF(Récap!Y:Y,A8,Récap!Z:Z) -> 0
A9: Dominique CLERENCE | B9: 0 | C9: =SUMIF(Récap!O:O,A9,Récap!P:P)+SUMIF(Récap!Q:Q,A9,Récap!R:R)+SUMIF(Récap!S:S,A9,Récap!T:T)+SUMIF(Récap!U:U,A9,Récap!V:V)+SUMIF(Récap!W:W,A9,Récap!X:X)+SUMIF(Récap!Y:Y,A9,Récap!Z:Z) -> 0
A10: Franck LOPEPE | B10: 4 | D10: 2016-07-04 | E10: 100 | F10: 2016-07-05 | G10: 100 | H10: 2016-07-07 | I10: 100 | J10: 2016-07-11 | K10: 100
A11: Grizzly | B11: 4 | C11: =SUMIF(Récap!O:O,A11,Récap!P:P)+SUMIF(Récap!Q:Q,A11,Récap!R:R)+SUMIF(Récap!S:S,A11,Récap!T:T)+SUMIF(Récap!U:U,A11,Récap!V:V)+SUMIF(Récap!W:W,A11,Récap!X:X)+SUMIF(Récap!Y:Y,A11,Récap!Z:Z) -> 810 | D11: 2016-07-04 | E11: 180 | F11: 2016-07-05 | G11: 200 | H11: 2016-07-07 | I11: 230 | J11: 2016-07-11 | K11: 200
A12: Guillaume KERVEL | B12: 0 | C12: =SUMIF(Récap!O:O,A12,Récap!P:P)+SUMIF(Récap!Q:Q,A12,Récap!R:R)+SUMIF(Récap!S:S,A12,Récap!T:T)+SUMIF(Récap!U:U,A12,Récap!V:V)+SUMIF(Récap!W:W,A12,Récap!X:X)+SUMIF(Récap!Y:Y,A12,Récap!Z:Z) -> 0
A13: John KIKOUTA | B13: 1 | C13: =SUMIF(Récap!O:O,A13,Récap!P:P)+SUMIF(Récap!Q:Q,A13,Récap!R:R)+SUMIF(Récap!S:S,A13,Récap!T:T)+SUMIF(Récap!U:U,A13,Récap!V:V)+SUMIF(Récap!W:W,A13,Récap!X:X)+SUMIF(Récap!Y:Y,A13,Récap!Z:Z) -> 260 | D13: 2016-07-21 | E13: 260
A14: Julien VARIN | B14: 0
A15: Junior | B15: 0 | C15: =SUMIF(Récap!O:O,A15,Récap!P:P)+SUMIF(Récap!Q:Q,A15,Récap!R:R)+SUMIF(Récap!S:S,A15,Récap!T:T)+SUMIF(Récap!U:U,A15,Récap!V:V)+SUMIF(Récap!W:W,A15,Récap!X:X)+SUMIF(Récap!Y:Y,A15,Récap!Z:Z) -> 0
A16: Kevon | B16: 0 | C16: =SUMIF(Récap!O:O,A16,Récap!P:P)+SUMIF(Récap!Q:Q,A16,Récap!R:R)+SUMIF(Récap!S:S,A16,Récap!T:T)+SUMIF(Récap!U:U,A16,Récap!V:V)+SUMIF(Récap!W:W,A16,Récap!X:X)+SUMIF(Récap!Y:Y,A16,Récap!Z:Z) -> 0
A17: Laurent AVENARD-KOHLER | B17: 0
A18: Loic SOULAT | B18: 0
A19: Manu VINCE | B19: 0 | C19: =SUMIF(Récap!O:O,A19,Récap!P:P)+SUMIF(Récap!Q:Q,A19,Récap!R:R)+SUMIF(Récap!S:S,A19,Récap!T:T)+SUMIF(Récap!U:U,A19,Récap!V:V)+SUMIF(Récap!W:W,A19,Récap!X:X)+SUMIF(Récap!Y:Y,A19,Récap!Z:Z) -> 0
A20: Marlene | B20: 0 | C20: =SUMIF(Récap!O:O,A20,Récap!P:P)+SUMIF(Récap!Q:Q,A20,Récap!R:R)+SUMIF(Récap!S:S,A20,Récap!T:T)+SUMIF(Récap!U:U,A20,Récap!V:V)+SUMIF(Récap!W:W,A20,Récap!X:X)+SUMIF(Récap!Y:Y,A20,Récap!Z:Z) -> 0
A21: Matthieu DEVAUX | B21: 0 | C21: =SUMIF(Récap!O:O,A21,Récap!P:P)+SUMIF(Récap!Q:Q,A21,Récap!R:R)+SUMIF(Récap!S:S,A21,Récap!T:T)+SUMIF(Récap!U:U,A21,Récap!V:V)+SUMIF(Récap!W:W,A21,Récap!X:X)+SUMIF(Récap!Y:Y,A21,Récap!Z:Z) -> 0
A22: Michel WEELEN | B22: 0 | C22: =SUMIF(Récap!O:O,A22,Récap!P:P)+SUMIF(Récap!Q:Q,A22,Récap!R:R)+SUMIF(Récap!S:S,A22,Récap!T:T)+SUMIF(Récap!U:U,A22,Récap!V:V)+SUMIF(Récap!W:W,A22,Récap!X:X)+SUMIF(Récap!Y:Y,A22,Récap!Z:Z) -> 0
A23: Nicolas OLMEDO | B23: 2 | D23: 2016-07-04 | E23: 100 | F23: 2016-07-05 | G23: 100
A24: Olivier | B24: 10 | C24: =SUMIF(Récap!O:O,A24,Récap!P:P)+SUMIF(Récap!Q:Q,A24,Récap!R:R)+SUMIF(Récap!S:S,A24,Récap!T:T)+SUMIF(Récap!U:U,A24,Récap!V:V)+SUMIF(Récap!W:W,A24,Récap!X:X)+SUMIF(Récap!Y:Y,A24,Récap!Z:Z) -> 3500 | D24: 2016-07-04 | E24: 450 | F24: 2016-07-04 | G24: 250 | H24: 2016-07-05 | I24: 450 | J24: 2016-07-06 | K24: 300 | L24: 2016-07-07 | M24: 400 | N24: 2016-07-08 | O24: 300 | P24: 2016-07-11 | Q24: 300 | R24: 2016-07-12 | S24: 400 | T24: 2016-07-12 | U24: 250 | V24: 2016-07-21 | W24: 400
A25: Rémi HENNAUT | B25: 0
A26: Romain | B26: 0 | C26: =SUMIF(Récap!O:O,A26,Récap!P:P)+SUMIF(Récap!Q:Q,A26,Récap!R:R)+SUMIF(Récap!S:S,A26,Récap!T:T)+SUMIF(Récap!U:U,A26,Récap!V:V)+SUMIF(Récap!W:W,A26,Récap!X:X)+SUMIF(Récap!Y:Y,A26,Récap!Z:Z) -> 0
A27: Rosalie H | B27: 1 | C27: =SUMIF(Récap!O:O,A27,Récap!P:P)+SUMIF(Récap!Q:Q,A27,Récap!R:R)+SUMIF(Récap!S:S,A27,Récap!T:T)+SUMIF(Récap!U:U,A27,Récap!V:V)+SUMIF(Récap!W:W,A27,Récap!X:X)+SUMIF(Récap!Y:Y,A27,Récap!Z:Z) -> 250 | D27: 2016-07-21 | E27: 250
A28: Sandro | B28: 3 | C28: =SUMIF(Récap!O:O,A28,Récap!P:P)+SUMIF(Récap!Q:Q,A28,Récap!R:R)+SUMIF(Récap!S:S,A28,Récap!T:T)+SUMIF(Récap!U:U,A28,Récap!V:V)+SUMIF(Récap!W:W,A28,Récap!X:X)+SUMIF(Récap!Y:Y,A28,Récap!Z:Z) -> 580 | D28: 2016-07-06 | E28: 150 | F28: 2016-07-07 | G28: 230 | H28: 2016-07-12 | I28: 200
A29: Sébastien L | B29: 0 | C29: =SUMIF(Récap!O:O,A29,Récap!P:P)+SUMIF(Récap!Q:Q,A29,Récap!R:R)+SUMIF(Récap!S:S,A29,Récap!T:T)+SUMIF(Récap!U:U,A29,Récap!V:V)+SUMIF(Récap!W:W,A29,Récap!X:X)+SUMIF(Récap!Y:Y,A29,Récap!Z:Z) -> 0
A30: Sidi | B30: 0 | C30: =SUMIF(Récap!O:O,A30,Récap!P:P)+SUMIF(Récap!Q:Q,A30,Récap!R:R)+SUMIF(Récap!S:S,A30,Récap!T:T)+SUMIF(Récap!U:U,A30,Récap!V:V)+SUMIF(Récap!W:W,A30,Récap!X:X)+SUMIF(Récap!Y:Y,A30,Récap!Z:Z) -> 0
A31: Soane | B31: 0 | C31: =SUMIF(Récap!O:O,A31,Récap!P:P)+SUMIF(Récap!Q:Q,A31,Récap!R:R)+SUMIF(Récap!S:S,A31,Récap!T:T)+SUMIF(Récap!U:U,A31,Récap!V:V)+SUMIF(Récap!W:W,A31,Récap!X:X)+SUMIF(Récap!Y:Y,A31,Récap!Z:Z) -> 0
A32: Stéphane BENAC | B32: 0 | C32: =SUMIF(Récap!O:O,A32,Récap!P:P)+SUMIF(Récap!Q:Q,A32,Récap!R:R)+SUMIF(Récap!S:S,A32,Récap!T:T)+SUMIF(Récap!U:U,A32,Récap!V:V)+SUMIF(Récap!W:W,A32,Récap!X:X)+SUMIF(Récap!Y:Y,A32,Récap!Z:Z) -> 0
A33: Stéphane BOUTINAUD | B33: 1 | C33: =SUMIF(Récap!O:O,A33,Récap!P:P)+SUMIF(Récap!Q:Q,A33,Récap!R:R)+SUMIF(Récap!S:S,A33,Récap!T:T)+SUMIF(Récap!U:U,A33,Récap!V:V)+SUMIF(Récap!W:W,A33,Récap!X:X)+SUMIF(Récap!Y:Y,A33,Récap!Z:Z) -> 0 | D33: 2016-07-03 | E33: mnt absent
A34: Stéphane CUFFEL | B34: 0 | C34: =SUMIF(Récap!O:O,A34,Récap!P:P)+SUMIF(Récap!Q:Q,A34,Récap!R:R)+SUMIF(Récap!S:S,A34,Récap!T:T)+SUMIF(Récap!U:U,A34,Récap!V:V)+SUMIF(Récap!W:W,A34,Récap!X:X)+SUMIF(Récap!Y:Y,A34,Récap!Z:Z) -> 0
A35: stéphane JUMEL | B35: 0 | C35: =SUMIF(Récap!O:O,A35,Récap!P:P)+SUMIF(Récap!Q:Q,A35,Récap!R:R)+SUMIF(Récap!S:S,A35,Récap!T:T)+SUMIF(Récap!U:U,A35,Récap!V:V)+SUMIF(Récap!W:W,A35,Récap!X:X)+SUMIF(Récap!Y:Y,A35,Récap!Z:Z) -> 0
A36: Wesley SEME | B36: 0 | C36: =SUMIF(Récap!O:O,A36,Récap!P:P)+SUMIF(Récap!Q:Q,A36,Récap!R:R)+SUMIF(Récap!S:S,A36,Récap!T:T)+SUMIF(Récap!U:U,A36,Récap!V:V)+SUMIF(Récap!W:W,A36,Récap!X:X)+SUMIF(Récap!Y:Y,A36,Récap!Z:Z) -> 0
A37: William AYENI | B37: 0 | C37: =SUMIF(Récap!O:O,A37,Récap!P:P)+SUMIF(Récap!Q:Q,A37,Récap!R:R)+SUMIF(Récap!S:S,A37,Récap!T:T)+SUMIF(Récap!U:U,A37,Récap!V:V)+SUMIF(Récap!W:W,A37,Récap!X:X)+SUMIF(Récap!Y:Y,A37,Récap!Z:Z) -> 0

Sheet Prix Presta

Sheet Agence

Sheet Activité
A1: Agence | B1: Nbre | C1: Total | D1: =SUM(B2:B39) -> 0
A2: AGENCE | B2: =COUNTIF(Activité,A2) -> 0
A3: AUTRES | B3: 0
A4: BATUCADA | B4: 0
A5: BODY PERC | B5: 0
A6: BOOM WHAKERS | B6: 0
A7: CALYPSO | B7: 0
A8: CHORUS | B8: 0
A9: COUNTRY | B9: 0
A10: CUP SONG | B10: 0
A11: DJEMBE | B11: 0
A12: FLASH MOB | B12: 0
A13: GUM BOOTS | B13: 0
A14: HAKA | B14: 0
A15: MUSIC CLIP | B15: 0
A16: PERCU CORPO | B16: 0
A17: SING STUDIO | B17: 0
A18: SYMPHO ROCK | B18: 0
A19: TAP TAP | B19: 0
A20: URBAN | B20: 0
A21: VIDEO | B21: 0
A22: VOCAL COACHING | B22: 0
A23: SHOW MUSICAL | B23: 0
A24: SHOW DANSE | B24: 0

Sheet Lieu
A1: Lieu | B1: Nbre
A2: ??? | B2: =COUNTIF(Lieu,A2) -> 0
A3: Ambassade de Nouvelle Z | B3: 0
A4: Ambassade de Nouvelle Z | B4: 0
A5: Atlantic | B5: 0
A6: Business Village | B6: 0
A7: centre du port royal | B7: 0
A8: Chalet des Iles | B8: 0
A9: Châteauform | B9: 0
A10: Chesnaie du Roi | B10: 0
A11: Domaine de Frémigny | B11: 0
A12: Domaine de Rebetz | B12: 0
A13: Les Erables | B13: 0
A14: presqu'ile de Giens | B14: 0
A15: siège BNP Paribas | B15: 0
B16: 0
B17: 0
B18: 0
B19: 0
B20: 0
B21: 0
B22: 0
B23: 0
B24: 0
B25: 0
B26: 0
B27: 0
B28: 0

Sheet Date
A1: 2016-07-01
A2: 2016-07-02
A3: 2016-07-03
A4: 2016-07-04
A5: 2016-07-05
A6: 2016-07-06
A7: 2016-07-07
A8: 2016-07-08
A9: 2016-07-09
A10: 2016-07-10
A11: 2016-07-11
A12: 2016-07-12
A13: 2016-07-13
A14: 2016-07-14
A15: 2016-07-15
A16: 2016-07-16
A17: 2016-07-17
A18: 2016-07-18
A19: 2016-07-19
A20: 2016-07-20
A21: 2016-07-21
A22: 2016-07-22
A23: 2016-07-23
A24: 2016-07-24
A25: 2016-07-25
A26: 2016-07-26
A27: 2016-07-27
A28: 2016-07-28
A29: 2016-07-29
A30: 2016-07-30
A31: 2016-07-31

Sheet Horaire
A2: 07:00:00
A3: 08:00:00
A4: 09:00:00
A5: 10:00:00
A6: 11:00:00
A7: 12:00:00
A8: 13:00:00
A9: 14:00:00
A10: 15:00:00
A11: 16:00:00
A12: 17:00:00
A13: 18:00:00
A14: 19:00:00
A15: 20:00:00
A16: 21:00:00
A17: 22:00:00
A18: 23:00:00
A19: 1

Sheet Autres
A1: oui
A2: non
A3: Annulée

Sheet Feuil3
